fUST/lending_fUST_20250302
["ID","MTS","AMOUNT","RATE_DAILY","PERIOD"]
[355045481,1740880274717,-829.49,0.00025753,2]
[355045482,1740880274727,-307.6298593,0.00025753,2]
[355045483,1740880274738,-500.0,0.00025753,2]
[355045484,1740880274747,-500.0,0.00025753,2]
[355045485,1740880274758,-1227.57,0.00025753,2]
[355045486,1740880274768,-500.0,0.00025753,2]
[355045487,1740880274778,-500.0,0.00025753,2]
[355045488,1740880274788,-500.0,0.00025753,2]
[355045489,1740880274798,-155.965716,0.00025753,7]
[355045490,1740880274808,-500.0,0.00025753,2]
[355045491,1740880274818,-500.0,0.00025753,2]
[355045492,1740880274828,-500.0,0.00025753,2]
[355045493,1740880274838,-500.0,0.00025753,2]
[355045494,1740880274848,-500.0,0.00025753,2]
[355045495,1740880274859,-500.0,0.00025753,2]
[355045496,1740880274877,-611.77345001,0.00025753,2]
[355045497,1740880274889,-504.35380533,0.00025753,2]
[355045498,1740880274900,-500.0,0.00025753,2]
[355045499,1740880274911,-500.0,0.00025753,2]
[355045500,1740880274922,-509.33267781,0.00025753,2]
[355045501,1740880274933,-500.0,0.00025753,2]
[355045502,1740880274943,-756.9,0.00025753,2]
[355045503,1740880274952,-500.0,0.00025753,2]
[355045504,1740880274962,-500.0,0.00025753,2]
[355045505,1740880274972,-1369.97,0.00025753,2]
[355045506,1740880274982,-500.0,0.00025753,2]
[355045507,1740880274992,-500.0,0.00025753,2]
[355045508,1740880275002,-500.0,0.00025753,2]
[355045509,1740880275012,-502.80636904,0.00025753,2]
[355045510,1740880275023,-500.0,0.00025753,2]
[355045511,1740880275033,-500.0,0.00025753,2]
[355045512,1740880275042,-501.84793731,0.00025753,2]
[355045513,1740880275052,-500.0,0.00025753,2]
[355045514,1740880275062,-500.0,0.00025753,2]
[355045515,1740880275073,-500.0,0.00025753,2]
[355045516,1740880275084,-507.23901709,0.00025753,2]
[355045517,1740880275094,-500.0,0.00025753,2]
[355045518,1740880275104,-500.0,0.00025753,2]
[355045519,1740880275115,-500.0,0.00025753,2]
[355045520,1740880275125,-167.01854588,0.00025753,2]
[355045521,1740880275135,-151.0,0.00025753,7]
[355045522,1740880275148,-228.05025,0.00025753,7]
[355045523,1740880275159,-500.0,0.00025753,2]
[355045524,1740880275169,-154.98316,0.00025753,7]
[355045525,1740880275179,-228.05025,0.00025753,7]
[355045526,1740880275191,-500.0,0.00025753,2]
[355045527,1740880275200,-512.16923544,0.00025753,2]
[355045528,1740880275210,-500.0,0.00025753,2]
[355045529,1740880275219,-597.01868028,0.00025753,2]
[355045530,1740880275229,-982.43,0.00025753,2]
[355045531,1740880275238,-1034.54,0.00025753,2]
[355045532,1740880275248,-500.0,0.00025753,2]
[355045533,1740880275257,-500.0,0.00025753,2]
[355045534,1740880275267,-500.0,0.00025753,2]
[355045535,1740880275276,-507.23834086,0.00025753,2]
[355045536,1740880275286,-500.0,0.00025753,2]
[355045537,1740880275296,-500.0,0.00025753,2]
[355045538,1740880275307,-500.0,0.00025753,2]
[355045539,1740880275318,-500.0,0.00025753,2]
[355045540,1740880275329,-659.39,0.00025753,2]
[355045541,1740880275339,-151.0,0.00025753,7]
[355045542,1740880275349,-505.93818912,0.00025753,2]
[355045543,1740880275358,-500.0,0.00025753,2]
[355045544,1740880275549,-500.0,0.00025753,2]
[355045545,1740880275560,-2080.684122,0.00025753,7]
[355045546,1740880275570,-500.0,0.00025753,2]
[355045547,1740880275580,-576.41587404,0.00025753,2]
[355045548,1740880275590,-500.0,0.00025753,2]
[355045549,1740880275600,-2080.684122,0.00025753,7]
[355045550,1740880275610,-500.0,0.00025753,2]
[355045551,1740880275621,-632.19,0.00025753,2]
[355045552,1740880275631,-500.0,0.00025753,2]
[355045553,1740880275641,-500.0,0.00025753,2]
[355045554,1740880275651,-500.0,0.00025753,2]
[355045555,1740880275660,-500.0,0.00025753,2]
[355045556,1740880275673,-853.11,0.00025753,2]
[355045557,1740880275683,-500.0,0.00025753,2]
[355045558,1740880275693,-526.33686858,0.00025753,2]
[355045559,1740880275703,-500.0,0.00025753,2]
[355045560,1740880275713,-500.0,0.00025753,2]
[355045561,1740880275723,-341.39583031,0.00025753,2]
[355045562,1740880275733,-200.13327288,0.00025753,2]
[355045563,1740880275743,-500.0,0.00025753,2]
[355045564,1740880275752,-500.0,0.00025753,2]
[355045565,1740880275762,-500.0,0.00025753,2]
[355045566,1740880275772,-570.03,0.00025753,2]
[355045567,1740880275782,-986.53,0.00025753,2]
[355045568,1740880275791,-507.36093222,0.00025753,2]
[355045569,1740880275802,-500.0,0.00025753,2]
[355045570,1740880275812,-500.0,0.00025753,2]
[355045571,1740880275822,-1062.76,0.00025753,2]
[355045572,1740880275832,-500.0,0.00025753,2]
[355045573,1740880275842,-791.15,0.00025753,2]
[355045574,1740880275852,-1302.12,0.00025753,2]
[355045575,1740880275862,-1302.28,0.00025753,2]
[355045576,1740880275872,-500.0,0.00025753,2]
[355045577,1740880275882,-500.95908563,0.00025753,2]
[355045578,1740880275891,-503.99717618,0.00025753,2]
[355045579,1740880275901,-1413.57,0.00025753,2]
[355045580,1740880275912,-500.0,0.00025753,2]
[355045581,1740880275921,-500.0,0.00025753,2]
[355045582,1740880275931,-501.47798241,0.00025753,2]
[355045583,1740880275941,-500.0,0.00025753,2]
[355045584,1740880275951,-1907.27,0.00025753,2]
[355045585,1740880275961,-548.28,0.00025753,2]
[355045586,1740880275971,-500.0,0.00025753,2]
[355045587,1740880275980,-2053.23,0.00025753,2]
[355045588,1740880275990,-505.94888308,0.00025753,2]
[355045589,1740880276000,-1240.45,0.00025753,2]
[355045590,1740880276010,-875.98,0.00025753,2]
[355045591,1740880276019,-500.0,0.00025753,2]
[355045592,1740880276030,-500.0,0.00025753,2]
[355045593,1740880276039,-500.0,0.00025753,2]
[355045594,1740880276049,-152.462975,0.00025753,7]
[355045595,1740880276059,-500.0,0.00025753,2]
[355045596,1740880276068,-500.0,0.00025753,2]
[355045597,1740880276078,-500.0,0.00025753,2]
[355045598,1740880276088,-152.399284,0.00025753,7]
[355045599,1740880276097,-1995.17,0.00025753,2]
[355045600,1740880276107,-506.915732,0.00025753,2]
[355045601,1740880276117,-508.74,0.00025753,2]
[355045602,1740880276127,-500.0,0.00025753,2]
[355045603,1740880276136,-509.57646936,0.00025753,2]
[355045604,1740880276150,-1807.11,0.00025753,2]
[355045605,1740880276160,-614.79,0.00025753,2]
[355045606,1740880276170,-151.0,0.00025753,7]
[355045607,1740880276180,-151.0,0.00025753,7]
[355045608,1740880276190,-500.0,0.00025753,2]
[355045609,1740880276200,-2129.66,0.00025753,2]
[355045610,1740880276210,-500.0,0.00025753,2]
[355045611,1740880276221,-500.0,0.00025753,2]
[355045612,1740880276230,-500.0,0.00025753,2]
[355045613,1740880276240,-1159.88,0.00025753,2]
[355045614,1740880276250,-500.0,0.00025753,2]
[355045615,1740880276260,-500.0,0.00025753,2]
[355045616,1740880276270,-888.08,0.00025753,2]
[355045617,1740880276280,-1285.98,0.00025753,2]
[355045618,1740880276290,-500.0,0.00025753,2]
[355045619,1740880276300,-501.57505111,0.00025753,2]
[355045620,1740880276309,-500.0,0.00025753,2]
[355045621,1740880276319,-500.0,0.00025753,2]
[355045622,1740880276329,-500.0,0.00025753,2]
[355045623,1740880276339,-827.35,0.00025753,2]
[355045624,1740880276349,-1210.31,0.00025753,2]
[355045625,1740880276359,-500.0,0.00025753,2]
[355045626,1740880276369,-500.0,0.00025753,2]
[355045627,1740880276379,-500.0,0.00025753,2]
[355045628,1740880276388,-542.8,0.00025753,2]
[355045629,1740880276398,-504.89820815,0.00025753,2]
[355045630,1740880276408,-1793.6,0.00025753,2]
[355045631,1740880276418,-500.0,0.00025753,2]
[355045632,1740880276428,-500.0,0.00025753,2]
[355045633,1740880276438,-711.67,0.00025753,2]
[355045634,1740880276448,-682.3,0.00025753,2]
[355045635,1740880276459,-500.0,0.00025753,2]
[355045636,1740880276469,-450.368911,0.00025753,7]
[355045637,1740880276479,-500.0,0.00025753,2]
[355045638,1740880276489,-500.0,0.00025753,2]
[355045639,1740880276499,-450.368911,0.00025753,7]
[355045640,1740880276509,-346.732813,0.00025753,7]
[355045641,1740880276519,-500.0,0.00025753,2]
[355045642,1740880276529,-758.85,0.00025753,2]
[355045643,1740880276539,-1461.59,0.00025753,2]
[355045644,1740880276549,-500.0,0.00025753,2]
[355045645,1740880276558,-346.732813,0.00025753,7]
[355045646,1740880276569,-500.0,0.00025753,2]
[355045647,1740880276579,-151.0,0.00025753,7]
[355045648,1740880276589,-536.53770525,0.00025753,2]
[355045649,1740880276598,-538.88071805,0.00025753,2]
[355045650,1740880276608,-151.0,0.00025753,7]
[355045651,1740880276618,-500.0,0.00025753,2]
[355045652,1740880276627,-500.0,0.00025753,2]
[355045653,1740880276637,-500.0,0.00025753,2]
[355045654,1740880276647,-500.0,0.00025753,2]
[355045655,1740880276656,-500.0,0.00025753,2]
[355045656,1740880276666,-1384.13,0.00025753,2]
[355045657,1740880276675,-500.0,0.00025753,2]
[355045658,1740880276685,-238.960978,0.00025753,7]
[355045659,1740880276695,-505.93038448,0.00025753,2]
[355045660,1740880276705,-500.0,0.00025753,2]
[355045661,1740880276715,-238.960978,0.00025753,7]
[355045662,1740880276724,-500.0,0.00025753,2]
[355045663,1740880276734,-506.38686102,0.00025753,2]
[355045664,1740880276744,-151.0,0.00025753,7]
[355045665,1740880276754,-674.15,0.00025753,2]
[355045666,1740880276764,-500.0,0.00025753,2]
[355045667,1740880276773,-151.0,0.00025753,7]
[355045668,1740880276784,-151.0,0.00025753,7]
[355045669,1740880276793,-3195.55,0.00025753,2]
[355045670,1740880276803,-500.0,0.00025753,2]
[355045671,1740880276812,-517.32131114,0.00025753,2]
[355045672,1740880276821,-500.0,0.00025753,2]
[355045673,1740880276831,-1047.61,0.00025753,2]
[355045674,1740880276841,-500.0,0.00025753,2]
[355045675,1740880276850,-500.0,0.00025753,2]
[355045676,1740880276860,-614.99,0.00025753,2]
[355045677,1740880276870,-1198.93,0.00025753,2]
[355045678,1740880276880,-500.0,0.00025753,2]
[355045679,1740880276890,-553.7,0.00025753,2]
[355045680,1740880276901,-501.94231743,0.00025753,2]
[355045681,1740880276911,-591.09,0.00025753,2]
[355045682,1740880276920,-2175.84,0.00025753,2]
[355045683,1740880276931,-500.0,0.00025753,2]
[355045684,1740880276941,-2268.39,0.00025753,2]
[355045685,1740880276951,-500.0,0.00025753,2]
[355045686,1740880276962,-1913.802348,0.00025753,7]
[355045687,1740880276972,-524.51,0.00025753,2]
[355045688,1740880276982,-500.0,0.00025753,2]
[355045689,1740880276992,-500.0,0.00025753,2]
[355045690,1740880277002,-500.0,0.00025753,2]
[355045691,1740880277012,-500.0,0.00025753,2]
[355045692,1740880277027,-2076.54,0.00025753,2]
[355045693,1740880277039,-1420.81,0.00025753,2]
[355045694,1740880277048,-500.0,0.00025753,2]
[355045695,1740880277058,-500.0,0.00025753,2]
[355045696,1740880277068,-500.51,0.00025753,2]
[355045697,1740880277078,-521.17,0.00025753,2]
[355045698,1740880277088,-151.0,0.00025753,7]
[355045699,1740880277097,-928.01,0.00025753,2]
[355045700,1740880277107,-2706.92,0.00025753,2]
[355045701,1740880277116,-687.64,0.00025753,2]
[355045702,1740880277126,-151.0,0.00025753,7]
[355045703,1740880277136,-752.72,0.00025753,2]
[355045704,1740880277149,-500.0,0.00025753,2]
[355045705,1740880277159,-1471.54,0.00025753,2]
[355045706,1740880277168,-500.0,0.00025753,2]
[355045707,1740880277179,-354.895394,0.00025753,7]
[355045708,1740880277188,-504.59265829,0.00025753,2]
[355045709,1740880277198,-546.87,0.00025753,2]
[355045710,1740880277208,-506.87221877,0.00025753,2]
[355045711,1740880277219,-1392.2,0.00025753,2]
[355045712,1740880277228,-500.0,0.00025753,2]
[355045713,1740880277238,-500.0,0.00025753,2]
[355045714,1740880277247,-500.0,0.00025753,2]
[355045715,1740880277258,-500.0,0.00025753,2]
[355045716,1740880277268,-1223.59,0.00025753,2]
[355045717,1740880277279,-500.0,0.00025753,2]
[355045718,1740880277288,-500.0,0.00025753,2]
[355045719,1740880277298,-1131.99,0.00025753,2]
[355045720,1740880277308,-546.98,0.00025753,2]
[355045721,1740880277318,-511.52527959,0.00025753,2]
[355045722,1740880277327,-723.26,0.00025753,2]
[355045723,1740880277336,-1168.03,0.00025753,2]
[355045724,1740880277346,-548.67,0.00025753,2]
[355045725,1740880277355,-151.0,0.00025753,7]
[355045726,1740880277365,-500.0,0.00025753,2]
[355045727,1740880277375,-225.839233,0.00025753,7]
[355045728,1740880277384,-151.0,0.00025753,7]
[355045729,1740880277394,-225.839233,0.00025753,7]
[355045730,1740880277403,-242.96734454,0.00025753,2]
[355045731,1740880277412,-3044.28,0.00025753,2]
[355045732,1740880277422,-377.923398,0.00025753,7]
[355045733,1740880277431,-500.0,0.00025753,2]
[355045734,1740880277441,-583.22,0.00025753,2]
[355045735,1740880277451,-500.0,0.00025753,2]
[355045736,1740880277461,-500.0,0.00025753,2]
[355045737,1740880277470,-377.923398,0.00025753,7]
[355045738,1740880277480,-1031.55,0.00025753,2]
[355045739,1740880277489,-500.0,0.00025753,2]
[355045740,1740880277499,-500.0,0.00025753,2]
[355045741,1740880277508,-500.0,0.00025753,2]
[355045742,1740880277518,-514.9302193,0.00025753,2]
[355045743,1740880277527,-531.7,0.00025753,2]
[355045744,1740880277537,-1257.16,0.00025753,2]
[355045745,1740880277546,-500.0,0.00025753,2]
[355045746,1740880277555,-500.0,0.00025753,2]
[355045747,1740880277565,-1834.8,0.00025753,2]
[355045748,1740880277575,-500.0,0.00025753,2]
[355045749,1740880277584,-500.0,0.00025753,2]
[355045750,1740880277594,-500.0,0.00025753,2]
[355045751,1740880277603,-500.0,0.00025753,2]
[355045752,1740880277613,-930.89,0.00025753,2]
[355045753,1740880277623,-500.0,0.00025753,2]
[355045754,1740880277633,-919.06,0.00025753,2]
[355045755,1740880277642,-1076.72,0.00025753,2]
[355045756,1740880277652,-505.65591996,0.00025753,2]
[355045757,1740880277661,-509.7952113,0.00025753,2]
[355045758,1740880277671,-500.0,0.00025753,2]
[355045759,1740880277682,-500.0,0.00025753,2]
[355045760,1740880277702,-500.0,0.00025753,2]
[355045761,1740880277712,-1069.63,0.00025753,2]
[355045762,1740880277721,-500.0,0.00025753,2]
[355045763,1740880277730,-602.99,0.00025753,2]
[355045764,1740880277740,-500.0,0.00025753,2]
[355045765,1740880277749,-500.0,0.00025753,2]
[355045766,1740880277759,-1066.49,0.00025753,2]
[355045767,1740880277769,-516.89,0.00025753,2]
[355045768,1740880277779,-974.857858,0.00025753,7]
[355045769,1740880277788,-1004.76,0.00025753,2]
[355045770,1740880277797,-5283.31,0.00025753,2]
[355045771,1740880277807,-500.0,0.00025753,2]
[355045772,1740880277817,-974.857858,0.00025753,7]
[355045773,1740880277827,-2661.42,0.00025753,2]
[355045774,1740880277836,-500.0,0.00025753,2]
[355045775,1740880277846,-500.0,0.00025753,2]
[355045776,1740880277856,-500.0,0.00025753,2]
[355045777,1740880277866,-500.0,0.00025753,2]
[355045778,1740880277876,-617.73,0.00025753,2]
[355045779,1740880277885,-954.7,0.00025753,2]
[355045780,1740880277895,-791.56,0.00025753,2]
[355045781,1740880277904,-377.71538,0.00025753,7]
[355045782,1740880277913,-500.0,0.00025753,2]
[355045783,1740880277923,-500.0,0.00025753,2]
[355045784,1740880277932,-500.0,0.00025753,2]
[355045785,1740880277942,-500.0,0.00025753,2]
[355045786,1740880277955,-377.71538,0.00025753,7]
[355045787,1740880277965,-1320.98,0.00025753,2]
[355045788,1740880277974,-500.0,0.00025753,2]
[355045789,1740880277983,-500.0,0.00025753,2]
[355045790,1740880277992,-151.0,0.00025753,7]
[355045791,1740880278002,-2209.87,0.00025753,2]
[355045792,1740880278012,-12127.47,0.00025753,2]
[355045793,1740880278022,-500.0,0.00025753,2]
[355045794,1740880278031,-500.03,0.00025753,2]
[355045795,1740880278041,-200.0,0.00025753,2]
[355045796,1740880278051,-500.0,0.00025753,2]
[355045797,1740880278060,-511.57086965,0.00025753,2]
[355045798,1740880278070,-714.71,0.00025753,2]
[355045799,1740880278080,-500.0,0.00025753,2]
[355045800,1740880278090,-500.0,0.00025753,2]
[355045801,1740880278099,-500.0,0.00025753,2]
[355045802,1740880278109,-912.13,0.00025753,2]
[355045803,1740880278118,-866.0,0.00025753,2]
[355045804,1740880278128,-1259.84,0.00025753,2]
[355045805,1740880278138,-500.0,0.00025753,2]
[355045806,1740880278153,-500.0,0.00025753,2]
[355045807,1740880278163,-533.74,0.00025753,2]
[355045808,1740880278173,-2799.02,0.00025753,2]
[355045809,1740880278345,-3275.34,0.00025753,2]
[355045810,1740880278357,-1622.45,0.00025753,2]
[355045811,1740880278367,-517.02429512,0.00025753,2]
[355045812,1740880278377,-1389.7,0.00025753,2]
[355045813,1740880278386,-237257.16,0.00025753,2]
[355045814,1740880278396,-500.0,0.00025753,2]
[355045815,1740880278406,-500.0,0.00025753,2]
[355045816,1740880278415,-500.0,0.00025753,2]
[355045817,1740880278425,-2526.74,0.00025753,2]
[355045818,1740880278435,-703.97,0.00025753,2]
[355045819,1740880278445,-500.0,0.00025753,2]
[355045820,1740880278454,-508.65650462,0.00025753,2]
[355045821,1740880278464,-500.0,0.00025753,2]
[355045822,1740880278473,-500.0,0.00025753,2]
[355045823,1740880278483,-500.0,0.00025753,2]
[355045824,1740880278494,-1718.1,0.00025753,2]
[355045825,1740880278504,-500.0,0.00025753,2]
[355045826,1740880278513,-866.27388,0.00025753,7]
[355045827,1740880278523,-500.0,0.00025753,2]
[355045828,1740880278533,-1801.15,0.00025753,2]
[355045829,1740880278544,-500.0,0.00025753,2]
[355045830,1740880278554,-344.84,0.00025753,2]
[355045831,1740880278564,-866.27388,0.00025753,7]
[355045832,1740880278574,-4941.89,0.00025753,2]
[355045833,1740880278584,-500.0,0.00025753,2]
[355045834,1740880278594,-860.85,0.00025753,2]
[355045835,1740880278604,-476.83627928,0.00025753,2]
[355045836,1740880278614,-500.0,0.00025753,2]
[355045837,1740880278624,-1102.8,0.00025753,2]
[355045838,1740880278634,-2226.47,0.00025753,2]
[355045839,1740880278644,-687.36,0.00025753,2]
[355045840,1740880278654,-500.0,0.00025753,2]
[355045841,1740880278664,-500.0,0.00025753,2]
[355045842,1740880278675,-2646.1,0.00025753,2]
[355045843,1740880278684,-500.0,0.00025753,2]
[355045844,1740880278694,-500.0,0.00025753,2]
[355045845,1740880278704,-152.796622,0.00025753,7]
[355045846,1740880278714,-1793.92,0.00025753,2]
[355045847,1740880278723,-500.0,0.00025753,2]
[355045848,1740880278733,-500.0,0.00025753,2]
[355045849,1740880278743,-519.89410569,0.00025753,2]
[355045850,1740880278753,-17596.01,0.00025753,2]
[355045851,1740880278763,-500.0,0.00025753,2]
[355045852,1740880278773,-694.6,0.00025753,2]
[355045853,1740880278783,-506.82,0.00025753,2]
[355045854,1740880278792,-500.0,0.00025753,2]
[355045855,1740880278802,-780.03,0.00025753,2]
[355045856,1740880278812,-507.3632413,0.00025753,2]
[355045857,1740880278822,-5992.25,0.00025753,2]
[355045858,1740880278832,-500.0,0.00025753,2]
[355045859,1740880278842,-2325.18,0.00025753,2]
[355045860,1740880278851,-1232.16,0.00025753,2]
[355045861,1740880278860,-151.0,0.00025753,7]
[355045862,1740880278870,-500.0,0.00025753,2]
[355045863,1740880278880,-151.0,0.00025753,7]
[355045864,1740880278890,-955.14,0.00025753,2]
[355045865,1740880278900,-14411.32,0.00025753,2]
[355045866,1740880278910,-500.0,0.00025753,2]
[355045867,1740880278920,-504.7,0.00025753,2]
[355045868,1740880278931,-500.0,0.00025753,2]
[355045869,1740880278941,-506.87733096,0.00025753,2]
[355045870,1740880278951,-151.0,0.00025753,7]
[355045871,1740880278961,-6090.67,0.00025753,2]
[355045872,1740880278971,-170.222849,0.00025753,7]
[355045873,1740880278982,-500.0,0.00025753,2]
[355045874,1740880278992,-151.0,0.00025753,7]
[355045875,1740880279002,-500.0,0.00025753,2]
[355045876,1740880279012,-8908.64,0.00025753,2]
[355045877,1740880279023,-1018.64,0.00025753,2]
[355045878,1740880279033,-19624.61182001,0.00025753,7]
[355045879,1740880279045,-500.0,0.00025753,2]
[355045880,1740880279055,-667.57,0.00025753,2]
[355045881,1740880279065,-1331.8,0.00025753,2]
[355045882,1740880279075,-277.607666,0.00025753,7]
[355045883,1740880279085,-170.222849,0.00025753,7]
[355045884,1740880279095,-508.98671416,0.00025753,2]
[355045885,1740880279105,-500.0,0.00025753,2]
[355045886,1740880279115,-500.0,0.00025753,2]
[355045887,1740880279126,-500.0,0.00025753,2]
[355045888,1740880279136,-151.0,0.00025753,7]
[355045889,1740880279150,-896.5,0.00025753,2]
[355045890,1740880279160,-623.08,0.00025753,2]
[355045891,1740880279170,-500.0,0.00025753,2]
[355045892,1740880279180,-500.0,0.00025753,2]
[355045893,1740880279191,-1406.67,0.00025753,2]
[355045894,1740880279200,-500.0,0.00025753,2]
[355045895,1740880279210,-5376.44,0.00025753,2]
[355045896,1740880279220,-500.0,0.00025753,2]
[355045897,1740880279230,-500.0,0.00025753,2]
[355045898,1740880279240,-1017.35,0.00025753,2]
[355045899,1740880279249,-546.12,0.00025753,2]
[355045900,1740880279259,-500.0,0.00025753,2]
[355045901,1740880279278,-151.0,0.00025753,7]
[355045902,1740880279289,-151.0,0.00025753,7]
[355045903,1740880279300,-500.0,0.00025753,2]
[355045904,1740880279309,-500.0,0.00025753,2]
[355045905,1740880279319,-500.0,0.00025753,2]
[355045906,1740880279329,-237.538368,0.00025753,7]
[355045907,1740880279338,-500.0,0.00025753,2]
[355045908,1740880279348,-665.17,0.00025753,2]
[355045909,1740880279358,-506.13523952,0.00025753,2]
[355045910,1740880279367,-1330.22,0.00025753,2]
[355045911,1740880279377,-502.5849783,0.00025753,2]
[355045912,1740880279387,-1436.12,0.00025753,5]
[355045913,1740880279396,-2218.12,0.00025753,2]
[355045914,1740880279406,-500.0,0.00025753,2]
[355045915,1740880279416,-1585.715627,0.00025753,7]
[355045916,1740880279426,-8022.97,0.00025753,2]
[355045917,1740880279436,-673.75,0.00025753,2]
[355045918,1740880279445,-930.58,0.00025753,2]
[355045919,1740880279455,-1207.39,0.00025753,2]
[355045920,1740880279464,-1585.715627,0.00025753,7]
[355045921,1740880279474,-1714.76,0.00025753,2]
[355045922,1740880279484,-488.73292691,0.00025753,2]
[355045923,1740880279494,-500.0,0.00025753,2]
[355045924,1740880279503,-500.0,0.00025753,2]
[355045925,1740880279513,-500.0,0.00025753,2]
[355045926,1740880279523,-1788.59,0.00025753,2]
[355045927,1740880279532,-517.45481242,0.00025753,2]
[355045928,1740880279542,-509.20052877,0.00025753,2]
[355045929,1740880279551,-2000.09,0.00025753,2]
[355045930,1740880279562,-912.93,0.00025753,2]
[355045931,1740880279572,-508.11984674,0.00025753,2]
[355045932,1740880279581,-756.89,0.00025753,2]
[355045933,1740880279591,-1040.97,0.00025753,2]
[355045934,1740880279601,-500.0,0.00025753,2]
[355045935,1740880279611,-585.74,0.00025753,2]
[355045936,1740880279621,-500.0,0.00025753,2]
[355045937,1740880279634,-500.0,0.00025753,2]
[355045938,1740880279644,-1881.14,0.00025753,2]
[355045939,1740880279654,-500.0,0.00025753,2]
[355045940,1740880279663,-543.29,0.00025753,2]
[355045941,1740880279673,-1185.09,0.00025753,2]
[355045942,1740880279682,-3783.09,0.00025753,2]
[355045943,1740880279692,-500.0,0.00025753,2]
[355045944,1740880279702,-500.0,0.00025753,2]
[355045945,1740880279712,-941.56,0.00025753,2]
[355045946,1740880279721,-500.0,0.00025753,2]
[355045947,1740880279731,-4102.21,0.00025753,2]
[355045948,1740880279741,-500.0,0.00025753,2]
[355045949,1740880279750,-2818.22,0.00025753,2]
[355045950,1740880279760,-255.83115321,0.00025753,2]
[355045951,1740880279769,-500.0,0.00025753,2]
[355045952,1740880279779,-7351.2,0.00025753,2]
[355045953,1740880279788,-16797.07,0.00025753,2]
[355045954,1740880279798,-500.0,0.00025753,2]
[355045955,1740880279807,-500.0,0.00025753,2]
[355045956,1740880279817,-500.0,0.00025753,2]
[355045957,1740880279827,-500.0,0.00025753,2]
[355045958,1740880279837,-500.0,0.00025753,2]
[355045959,1740880279847,-500.0,0.00025753,2]
[355045960,1740880279858,-500.0,0.00025753,2]
[355045961,1740880279867,-676.87,0.00025753,2]
[355045962,1740880279879,-1564.7236129,0.00025753,2]
[355045963,1740880281015,-53.4278506,0.00024931,2]
[355045964,1740880281027,-446.5721494,0.00024931,2]
[355045965,1740880281037,-500.0,0.00024931,2]
[355045966,1740880281047,-500.0,0.00025205,2]
[355045967,1740880281056,-180.681174,0.00025205,7]
[355045968,1740880281065,-500.0,0.00025205,2]
[355045969,1740880281075,-180.681174,0.00025205,7]
[355045970,1740880281086,-500.0,0.00025479,2]
[355045971,1740880281096,-500.0,0.00025479,2]
[355045972,1740880281106,-180.681174,0.00025479,7]
[355045973,1740880281117,-657.1163871,0.00025753,2]
[355045974,1740880281127,-1357.85,0.00025753,2]
[355045975,1740880281138,-460.53959549,0.00025753,2]
[355045976,1740880281152,-500.0,0.00025753,2]
[355045977,1740880281162,-1851.45,0.00025753,2]
[355045978,1740880281172,-1013.5,0.00025753,2]
[355045979,1740880281183,-502.97575986,0.00025753,2]
[355045980,1740880281192,-1362.5,0.00025753,2]